bitfinex/quotes_BTCUSD_20240817
["timestamp","ask_amount","ask_price","bid_price","bid_amount"]
[1723878961211,0.000824,59207.0,59206.0,1.93164153]
[1723878962459,0.000824,59207.0,59206.0,1.92764153]
[1723878962663,0.000824,59207.0,59206.0,1.92764278]
[1723878962920,0.000824,59207.0,59206.0,1.87854754]
[1723878963120,0.000824,59207.0,59206.0,1.90070439]
[1723878963509,0.081024,59207.0,59206.0,1.90270439]
[1723878964052,0.143824,59207.0,59206.0,1.33622039]
[1723878964253,0.143824,59207.0,59206.0,1.30866354]
[1723878964878,0.143824,59207.0,59206.0,1.14640154]
[1723878965672,0.143824,59207.0,59206.0,1.16940154]
[1723878965901,0.143824,59207.0,59206.0,1.15540154]
[1723878966101,0.143824,59207.0,59206.0,1.16940154]
[1723878966325,0.143824,59207.0,59206.0,1.15540154]
[1723878966544,0.143824,59207.0,59206.0,1.16940154]
[1723878968232,0.143824,59207.0,59206.0,1.14640154]
[1723878969226,0.143824,59207.0,59206.0,1.13240154]
[1723878969447,0.143824,59207.0,59206.0,1.11840154]
[1723878969664,0.143824,59207.0,59206.0,1.14640154]
[1723878973089,0.143824,59207.0,59206.0,1.44064354]
[1723878973090,0.000824,59207.0,59206.0,1.44064354]
[1723878973720,0.000824,59207.0,59206.0,1.44264354]
[1723878974486,0.000824,59207.0,59206.0,1.71288554]
[1723878974692,0.000824,59207.0,59206.0,1.83504472]
[1723878974894,0.000824,59207.0,59206.0,1.56280272]
[1723878978643,0.000824,59207.0,59206.0,1.83704472]
[1723878978848,0.000824,59207.0,59206.0,1.56280272]
[1723878979069,0.000824,59207.0,59206.0,1.56680272]
[1723878979275,0.000824,59207.0,59206.0,1.56280272]
[1723878979475,0.000824,59207.0,59206.0,1.56480272]
[1723878980581,0.000824,59207.0,59206.0,1.56680272]
[1723878981434,0.000824,59207.0,59206.0,1.56480272]
[1723878981643,0.000824,59207.0,59206.0,1.70760272]
[1723878981848,0.00040585,59208.0,59207.0,0.741895]
[1723878981849,8.5e-07,59208.0,59207.0,0.741895]
[1723878982191,8.5e-07,59208.0,59207.0,1.55180008]
[1723878982395,8.5e-07,59208.0,59207.0,2.09227608]
[1723878982608,8.5e-07,59208.0,59207.0,2.25680619]
[1723878982819,8.5e-07,59208.0,59207.0,2.36251054]
[1723878983017,8.5e-07,59208.0,59207.0,2.25680619]
[1723878983426,8.5e-07,59208.0,59207.0,2.27080619]
[1723878983634,8.5e-07,59208.0,59207.0,1.96382272]
[1723878984049,8.5e-07,59208.0,59207.0,2.01073669]
[1723878984277,8.5e-07,59208.0,59207.0,2.48102922]
[1723878985241,8.5e-07,59208.0,59207.0,2.49502922]
[1723878985788,8.5e-07,59208.0,59207.0,2.22479122]
[1723878988773,8.5e-07,59208.0,59207.0,2.20263204]
[1723878989018,8.5e-07,59208.0,59207.0,2.49502453]
[1723878989745,8.5e-07,59208.0,59207.0,2.22478653]
[1723878990395,8.5e-07,59208.0,59207.0,2.49502453]
[1723878992900,8.5e-07,59208.0,59207.0,2.22478653]
[1723878993458,8.5e-07,59208.0,59207.0,2.05698653]
[1723878993628,8.5e-07,59208.0,59207.0,2.06098653]
[1723878994541,8.5e-07,59208.0,59207.0,2.06098715]
[1723878994960,8.5e-07,59208.0,59207.0,2.08398715]
[1723878996572,8.5e-07,59208.0,59207.0,2.22728715]
[1723878997140,8.5e-07,59208.0,59207.0,2.22728653]
[1723878999453,8.5e-07,59208.0,59207.0,2.49752453]
[1723879000040,8.5e-07,59208.0,59207.0,2.22728653]
[1723879000258,8.5e-07,59208.0,59207.0,2.08398653]
[1723879000457,8.5e-07,59208.0,59207.0,2.06098653]
[1723879001407,8.5e-07,59208.0,59207.0,2.06098679]
[1723879001817,8.5e-07,59208.0,59207.0,2.08398679]
[1723879003605,8.5e-07,59208.0,59207.0,2.08396493]
[1723879005512,8.5e-07,59208.0,59207.0,2.08396506]
[1723879005718,8.5e-07,59208.0,59207.0,2.12067106]
[1723879006161,8.5e-07,59208.0,59207.0,2.08396501]
[1723879006363,8.5e-07,59208.0,59207.0,2.12067093]
[1723879008020,8.5e-07,59208.0,59207.0,1.97857093]
[1723879009466,8.5e-07,59208.0,59207.0,1.97947733]
[1723879009664,8.5e-07,59208.0,59207.0,2.0851843]
[1723879010968,8.5e-07,59208.0,59207.0,2.3554223]
[1723879011179,8.5e-07,59208.0,59207.0,2.4981223]
[1723879013693,8.5e-07,59208.0,59207.0,2.49812147]
[1723879014991,8.5e-07,59208.0,59207.0,2.43928341]
[1723879015191,8.5e-07,59208.0,59207.0,2.49812147]
[1723879017512,8.5e-07,59208.0,59207.0,2.54868975]
[1723879017924,8.5e-07,59208.0,59207.0,2.51198435]
[1723879018127,8.5e-07,59208.0,59207.0,2.54868973]
[1723879018330,8.5e-07,59208.0,59207.0,2.48985169]
[1723879018502,8.5e-07,59208.0,59207.0,2.49812145]
[1723879019515,0.000825,59211.0,59207.0,2.49812145]
[1723879019516,8.5e-07,59211.0,59210.0,1.492232]
[1723879019720,8.5e-07,59211.0,59210.0,2.26170786]
[1723879019922,8.5e-07,59211.0,59210.0,2.1604824]
[1723879020331,8.5e-07,59211.0,59210.0,2.4307064]
[1723879020533,8.5e-07,59211.0,59210.0,2.52292991]
[1723879020936,8.5e-07,59211.0,59210.0,2.53692991]
[1723879021158,8.5e-07,59211.0,59210.0,2.52292328]
[1723879021569,8.5e-07,59211.0,59210.0,2.53692328]
[1723879021718,8.5e-07,59211.0,59210.0,2.52292328]
[1723879021919,8.5e-07,59211.0,59210.0,2.53692328]
[1723879022151,8.5e-07,59211.0,59210.0,2.55092328]
[1723879022563,0.000825,59223.0,59222.0,1.491929]
[1723879022765,0.000825,59223.0,59222.0,1.91432074]
[1723879022966,0.000825,59223.0,59222.0,1.95102192]
[1723879023167,0.000825,59223.0,59222.0,2.22119092]
[1723879023728,0.000825,59223.0,59222.0,2.32989092]
[1723879023931,0.000825,59223.0,59222.0,2.38052258]
[1723879024139,0.000825,59223.0,59222.0,2.37852258]
[1723879024511,0.000825,59223.0,59222.0,2.40478292]
[1723879024667,0.000825,59223.0,59222.0,2.35415126]
[1723879024914,0.000825,59223.0,59222.0,2.354147]
[1723879025293,0.000825,59223.0,59222.0,2.31744852]
[1723879025451,0.000825,59223.0,59222.0,2.4403176]
[1723879025851,0.000825,59223.0,59222.0,2.4543176]
[1723879026546,0.000825,59223.0,59222.0,2.3783778]
[1723879026765,0.000825,59223.0,59222.0,2.47963087]
[1723879027438,0.000825,59223.0,59222.0,2.50494414]
[1723879028056,0.000825,59223.0,59222.0,2.64764414]
[1723879028186,0.000825,59223.0,59222.0,2.55777628]
[1723879028385,0.000825,59223.0,59222.0,2.5181666]
[1723879028774,0.000825,59223.0,59222.0,2.55485931]
[1723879029375,0.000825,59223.0,59222.0,2.67027687]
[1723879029572,0.000825,59223.0,59222.0,2.51816479]
[1723879029761,0.000825,59223.0,59222.0,2.70697222]
[1723879029971,0.000825,59223.0,59222.0,2.67027687]
[1723879030174,0.000825,59223.0,59222.0,2.51816479]
[1723879030754,0.000825,59223.0,59222.0,2.55486014]
[1723879030966,0.000825,59223.0,59222.0,2.51816479]
[1723879031548,0.000825,59223.0,59222.0,2.64468922]
[1723879032547,0.00167141,59229.0,59222.0,2.61933902]
[1723879032756,0.00167141,59229.0,59228.0,1.66133554]
[1723879032958,0.00167141,59229.0,59228.0,1.76133554]
[1723879033160,0.00167141,59229.0,59228.0,1.80646238]
[1723879033545,0.00167141,59229.0,59228.0,1.80846238]
[1723879033764,0.00167141,59229.0,59228.0,1.90316238]
[1723879033983,0.00167141,59229.0,59228.0,1.91716238]
[1723879034318,0.06327141,59229.0,59228.0,1.81846238]
[1723879034736,0.13987141,59229.0,59228.0,1.79633554]
[1723879034933,0.13987141,59229.0,59228.0,1.81846282]
[1723879035449,0.13987141,59229.0,59228.0,1.91316282]
[1723879035654,0.13987141,59229.0,59228.0,1.92716282]
[1723879036503,0.1382,59229.0,59228.0,1.92716282]
[1723879036868,0.1382,59229.0,59228.0,1.90503554]
[1723879037210,0.1382,59229.0,59228.0,1.92716376]
[1723879038571,0.1382,59229.0,59228.0,1.99479876]
[1723879041945,0.1382,59229.0,59228.0,1.72465676]
[1723879042146,0.1382,59229.0,59228.0,1.72365676]
[1723879042710,0.1382,59229.0,59228.0,1.60595676]
[1723879042930,0.1382,59229.0,59228.0,1.58382854]
[1723879043254,0.1382,59229.0,59228.0,1.60595676]
[1723879043516,0.1382,59229.0,59228.0,1.60895676]
[1723879043866,0.1382,59229.0,59228.0,1.62995676]
[1723879044869,0.1382,59229.0,59228.0,1.72465676]
[1723879045292,0.1382,59229.0,59228.0,1.72465724]
[1723879046098,0.139024,59229.0,59228.0,1.72465724]
[1723879049057,0.139024,59229.0,59228.0,1.72365724]
[1723879050947,0.139024,59229.0,59228.0,1.72465724]
[1723879051157,0.139024,59229.0,59228.0,1.72365724]
[1723879051599,0.05180058,59229.0,59228.0,1.72365724]
[1723879052747,0.05180058,59229.0,59228.0,1.52895724]
[1723879052999,0.05180058,59229.0,59228.0,1.25881524]
[1723879053253,0.05180058,59229.0,59228.0,1.16905154]
[1723879053498,0.05180058,59229.0,59228.0,1.22085154]
[1723879053872,0.05180058,59229.0,59228.0,1.22898223]
[1723879054105,0.05180058,59229.0,59228.0,1.19285154]
[1723879054276,0.05180058,59229.0,59228.0,1.20685154]
[1723879054453,0.12880058,59229.0,59228.0,1.20685154]
[1723879054655,0.12880058,59229.0,59228.0,1.22085154]
[1723879054939,0.12880058,59229.0,59228.0,1.20685154]
[1723879055094,0.12880058,59229.0,59228.0,1.22085154]
[1723879056071,0.12880058,59229.0,59228.0,1.20685154]
[1723879056275,0.12880058,59229.0,59228.0,1.22085154]
[1723879058240,0.12880058,59229.0,59228.0,1.16905154]
[1723879059195,0.12880058,59229.0,59228.0,1.15505154]
[1723879059458,0.12880058,59229.0,59228.0,1.16905154]
[1723879059911,0.12880058,59229.0,59228.0,1.15505154]
[1723879060324,0.12880058,59229.0,59228.0,1.16905154]
[1723879060948,0.12880058,59229.0,59228.0,1.15505154]
[1723879061151,0.12880058,59229.0,59228.0,1.16905154]
[1723879064582,0.12880058,59229.0,59228.0,1.14605154]
[1723879066125,0.12880058,59229.0,59228.0,0.33562554]
[1723879066457,0.33319213,59229.0,59228.0,0.60576754]
[1723879066661,0.66533806,59229.0,59228.0,0.20055454]
[1723879066833,0.6905652,59229.0,59228.0,0.164071]
[1723879066967,0.6905652,59229.0,59228.0,0.150071]
[1723879067171,0.56442951,59229.0,59228.0,0.150071]
[1723879067415,0.56442951,59229.0,59228.0,0.162071]
[1723879067805,0.6905652,59229.0,59228.0,0.150071]
[1723879068198,0.6905652,59229.0,59228.0,0.153071]
[1723879068424,0.68880519,59229.0,59228.0,0.153071]
[1723879068628,0.66356617,59229.0,59228.0,0.153071]
[1723879069029,0.66356617,59229.0,59228.0,0.139071]
[1723879069229,0.66356617,59229.0,59228.0,0.151071]
[1723879069434,0.66356617,59229.0,59228.0,0.148071]
[1723879069632,0.66356617,59229.0,59228.0,0.137071]
[1723879069793,0.66356617,59229.0,59228.0,0.140071]
[1723879070286,0.66356617,59229.0,59228.0,0.139071]
[1723879070665,0.66356617,59229.0,59228.0,0.1429774]
[1723879071452,0.25751072,59229.0,59228.0,0.1429774]
[1723879072254,0.25751072,59229.0,59228.0,0.0079064]
[1723879072417,0.33307821,59229.0,59228.0,0.0079064]
[1723879072987,0.3330782,59229.0,59228.0,0.0079064]
[1723879075491,0.25751072,59229.0,59228.0,0.0079064]
[1723879075696,0.3330782,59229.0,59228.0,0.0079064]
[1723879076795,0.7382832,59229.0,59228.0,0.0069064]
[1723879076992,0.4681462,59229.0,59228.0,0.0079064]
[1723879077152,0.4681462,59229.0,59228.0,0.0069064]
[1723879077358,0.46811073,59229.0,59228.0,0.0069064]
[1723879079286,0.73824773,59229.0,59228.0,0.0069064]
[1723879080067,0.73824773,59229.0,59228.0,0.0039064]
[1723879080281,1.00838473,59229.0,59228.0,0.0039064]
[1723879080477,1.50725793,59229.0,59228.0,0.0049064]
[1723879080676,1.60725793,59229.0,59228.0,0.0019064]
[1723879080945,0.8157,59224.0,59223.0,0.0009064]
[1723879081147,1.24590922,59224.0,59223.0,0.0009064]
[1723879081349,1.27989322,59224.0,59223.0,0.0009064]
[1723879081879,0.73957322,59224.0,59223.0,0.0009064]
[1723879082084,0.47855221,59224.0,59223.0,0.1369884]
[1723879082270,0.174284,59224.0,59223.0,0.1369884]
[1723879083067,0.174284,59224.0,59223.0,0.0059064]
[1723879083279,0.24982167,59224.0,59223.0,0.0059064]
[1723879083997,0.24982167,59224.0,59223.0,0.1409884]
[1723879084136,0.174284,59224.0,59223.0,0.4111534]
[1723879084343,0.174284,59224.0,59223.0,0.1409884]
[1723879085225,0.174284,59224.0,59223.0,0.0059064]
[1723879085427,0.174284,59224.0,59223.0,0.1409884]
[1723879086139,0.22462835,59224.0,59223.0,0.1409884]
[1723879086565,0.22462835,59224.0,59223.0,0.0059064]
[1723879086771,0.22462835,59224.0,59223.0,0.1409884]
[1723879086972,0.22462835,59224.0,59223.0,0.0059064]
[1723879087374,0.22462835,59224.0,59223.0,0.1409884]
[1723879089285,0.2246314,59224.0,59223.0,0.1409884]
[1723879089511,0.2246314,59224.0,59223.0,0.0059064]
[1723879090780,0.2246314,59224.0,59223.0,0.1409884]
[1723879091987,0.2246314,59224.0,59223.0,0.0059064]
[1723879092328,0.2246314,59224.0,59223.0,0.1409884]
[1723879092528,0.174284,59224.0,59223.0,0.0059064]
[1723879093482,0.174284,59224.0,59223.0,0.1409884]
[1723879094415,0.24982408,59224.0,59223.0,0.1409884]
[1723879094958,0.033984,59224.0,59223.0,1.26293794]
[1723879095195,0.05036274,59236.0,59228.0,0.675355]
[1723879095345,0.066225,59237.0,59228.0,0.84690954]
[1723879095547,0.066225,59237.0,59228.0,1.19635154]
[1723879096074,0.11658774,59237.0,59228.0,1.19635154]
[1723879096481,0.11658774,59237.0,59228.0,1.20435154]
[1723879096853,0.21128774,59237.0,59228.0,1.20435154]
[1723879097630,0.05036274,59236.0,59228.0,1.20435154]
[1723879097759,0.05036274,59236.0,59228.0,1.26495154]
[1723879097963,0.05036274,59236.0,59228.0,1.27195154]
[1723879098167,0.05040145,59236.0,59228.0,1.27195154]
[1723879100692,0.05040145,59235.0,59228.0,1.27195154]
[1723879100910,0.05040145,59236.0,59228.0,1.27295154]
[1723879101833,0.05042257,59236.0,59228.0,1.27295154]
[1723879103853,0.05042257,59236.0,59228.0,1.21235154]
[1723879104047,0.14185885,59237.0,59228.0,1.21235154]
[1723879104048,0.05042257,59235.0,59228.0,1.21235154]
[1723879104484,0.05042257,59235.0,59228.0,1.27295154]
[1723879105792,0.05043828,59235.0,59228.0,1.27295154]
[1723879107167,0.05043828,59235.0,59228.0,1.27385794]
[1723879107492,0.05043828,59235.0,59228.0,1.27803992]
[1723879108291,0.05043828,59234.0,59228.0,1.27803992]
[1723879108672,0.05043828,59235.0,59228.0,1.27803992]
[1723879108875,0.05044429,59235.0,59228.0,1.27385794]
[1723879109095,0.05044429,59234.0,59228.0,1.27385794]
[1723879109521,0.05044429,59235.0,59228.0,1.21325794]
[1723879109721,0.066225,59231.0,59228.0,1.13395794]
[1723879110076,0.0347924,59229.0,59228.0,1.13395794]
[1723879110306,0.0347924,59229.0,59228.0,0.86381594]
[1723879110307,0.1833924,59229.0,59228.0,0.86381594]
[1723879110539,0.1833924,59229.0,59228.0,0.1519774]
[1723879110731,0.2780924,59229.0,59228.0,0.1519774]
[1723879111235,0.2780924,59229.0,59228.0,0.4221194]
[1723879111447,0.35375884,59229.0,59228.0,0.1519774]
[1723879111653,0.56049126,59229.0,59228.0,0.0159064]
[1723879111854,0.78877953,59229.0,59228.0,0.0159064]
[1723879112476,0.98725211,59229.0,59228.0,0.0159064]
[1723879113073,0.86844326,59229.0,59228.0,0.0159064]
[1723879113276,0.86844326,59229.0,59228.0,0.0079064]
[1723879113480,1.13858026,59229.0,59228.0,0.0009064]
[1723879113620,1.13858026,59229.0,59228.0,0.0069064]
[1723879114053,1.24033761,59229.0,59228.0,0.0069064]
[1723879114377,1.24033761,59229.0,59228.0,0.0039064]
[1723879114672,1.24033761,59229.0,59228.0,0.0069064]
[1723879115013,1.24033761,59229.0,59228.0,0.0039064]
[1723879115443,1.24033761,59229.0,59228.0,0.0009064]
[1723879115887,1.24033761,59229.0,59228.0,0.0039064]
[1723879116031,1.24033761,59229.0,59228.0,0.0009064]
[1723879116236,1.24133761,59229.0,59228.0,0.0009064]
[1723879116441,1.24233761,59229.0,59228.0,0.0009064]
[1723879116842,1.24133761,59229.0,59228.0,0.0009064]
[1723879117066,1.24233761,59229.0,59228.0,0.0009064]
[1723879117608,1.14058026,59229.0,59228.0,0.0009064]
[1723879118213,1.04588026,59229.0,59228.0,0.0009064]
[1723879118417,1.14058026,59229.0,59228.0,0.0009064]
[1723879119126,1.14158026,59229.0,59228.0,0.0009064]
[1723879119559,1.41171726,59229.0,59228.0,0.0009064]
[1723879119755,1.26038911,59229.0,59228.0,0.0009064]
[1723879119961,1.64671315,59229.0,59228.0,0.0009064]
[1723879120804,1.6373934,59229.0,59228.0,0.0009064]
[1723879121023,1.6343934,59229.0,59228.0,0.0009064]
[1723879121223,1.6353934,59229.0,59228.0,0.0009064]
[1723879121630,1.6373934,59229.0,59228.0,0.0009064]
[1723879121828,1.80894794,59229.0,59228.0,0.0009064]
[1723879122860,2.07908494,59229.0,59228.0,0.0009064]
[1723879123429,2.07908494,59229.0,59223.0,0.0009064]
[1723879123430,1.11646,59224.0,59223.0,0.0009064]
[1723879123749,1.795419,59224.0,59223.0,0.0009064]
[1723879124363,2.03581031,59224.0,59223.0,0.0009064]
[1723879124537,1.92406431,59224.0,59223.0,0.0009064]
[1723879124751,2.02406431,59224.0,59223.0,0.0009064]
[1723879126330,2.03206431,59224.0,59223.0,0.0019064]
[1723879126528,2.20361885,59224.0,59223.0,0.0019064]
[1723879126931,2.21161885,59224.0,59223.0,0.0029064]
[1723879128494,2.22186534,59224.0,59223.0,0.0029064]
[1723879128697,2.49302534,59224.0,59223.0,0.0029064]
[1723879129876,2.473984,59224.0,59223.0,0.0029064]
[1723879131148,2.2021617,59224.0,59223.0,0.0029064]
[1723879131378,0.135102,59215.0,59211.0,0.0009064]
[1723879131540,0.07550942,59212.0,59211.0,0.0009064]
[1723879131749,0.07550942,59213.0,59212.0,0.0828]
[1723879132190,0.10067686,59215.0,59212.0,0.0828]
[1723879132191,0.07550942,59214.0,59212.0,0.0828]
[1723879132425,0.0947,59213.0,59212.0,0.0828]
[1723879132598,0.14503446,59213.0,59212.0,0.0828]
[1723879132775,0.0947,59213.0,59212.0,0.0828]
[1723879132987,0.14503527,59213.0,59212.0,0.0828]
[1723879133412,0.14503527,59213.0,59212.0,0.0818]
[1723879134016,0.14503527,59213.0,59212.0,0.0858]
[1723879134017,0.0947,59213.0,59212.0,0.0858]
[1723879134435,0.0947,59213.0,59212.0,0.0888]
[1723879136144,0.18543627,59215.0,59212.0,0.0888]
[1723879136343,0.0947,59213.0,59212.0,0.0888]
[1723879137126,0.0947,59213.0,59212.0,0.0858]
[1723879137365,0.05033527,59217.0,59214.0,0.135102]
[1723879137574,0.0947,59215.0,59214.0,0.135102]
[1723879138165,0.00083723,59215.0,59214.0,0.406308]
[1723879138368,0.00083723,59215.0,59214.0,0.467308]
[1723879138568,0.00083723,59215.0,59214.0,0.197102]
[1723879140539,0.00083723,59215.0,59214.0,0.199102]
[1723879141093,0.00083723,59215.0,59214.0,0.72366254]
[1723879141303,0.00083723,59215.0,59214.0,0.72466254]
[1723879141938,0.03473023,59215.0,59214.0,0.72466254]
[1723879142142,0.18277325,59215.0,59214.0,0.003]
[1723879142351,0.04767325,59215.0,59214.0,0.003]
[1723879143279,0.03473023,59215.0,59214.0,0.0039064]
[1723879145263,0.16983023,59215.0,59214.0,0.0039064]
[1723879145463,0.44003123,59215.0,59214.0,0.0039064]
[1723879145663,0.51733123,59215.0,59214.0,0.0039064]
[1723879145861,0.56764809,59215.0,59214.0,0.0039064]
[1723879146108,0.51733123,59215.0,59214.0,0.0039064]
[1723879146864,0.64631778,59215.0,59214.0,0.0039064]
[1723879147234,0.72179538,59215.0,59214.0,0.0039064]
[1723879147376,0.59280883,59215.0,59214.0,0.0039064]
[1723879148326,0.51733123,59215.0,59214.0,0.0039064]
[1723879149239,0.91072604,59215.0,59214.0,0.0039064]
[1723879150803,0.91090734,59215.0,59214.0,0.0039064]
[1723879151397,0.81016557,59215.0,59214.0,0.0039064]
[1723879151610,0.53996457,59215.0,59214.0,0.0039064]
[1723879151781,0.46266457,59215.0,59214.0,0.0039064]
[1723879152193,0.58859178,59215.0,59214.0,0.0039064]
[1723879153114,0.56349174,59215.0,59214.0,0.0039064]
[1723879153437,0.58859178,59215.0,59214.0,0.0039064]
[1723879153970,0.46266457,59215.0,59214.0,0.0039064]
[1723879155554,0.46332119,59215.0,59214.0,0.0039064]
[1723879157780,0.46414619,59215.0,59214.0,0.0039064]
[1723879159293,0.32904619,59215.0,59214.0,0.0039064]
[1723879159505,0.42374619,59215.0,59214.0,0.0039064]
[1723879160048,0.42374619,59215.0,59214.0,0.1390094]
[1723879163181,0.32904619,59215.0,59214.0,0.1390094]
[1723879163370,0.57509921,59215.0,59214.0,0.1390094]
[1723879164273,0.13025523,59215.0,59214.0,0.1390094]
[1723879164478,0.28186635,59215.0,59214.0,0.1390094]
[1723879164721,0.57729716,59215.0,59214.0,0.1390094]
[1723879166337,0.42568604,59215.0,59214.0,0.1390094]
[1723879166996,0.28191516,59215.0,59214.0,0.1390094]
[1723879167170,0.57734597,59215.0,59214.0,0.1390094]
[1723879167346,0.42568604,59215.0,59214.0,0.1390094]
[1723879168140,0.57737175,59215.0,59214.0,0.1390094]
[1723879168342,0.42568604,59215.0,59214.0,0.1390094]
[1723879168901,0.33144747,59215.0,59214.0,0.4887154]
[1723879169133,0.03555523,59215.0,59214.0,0.4887154]
[1723879169654,0.03555523,59215.0,59214.0,0.7589214]
[1723879169870,0.29763042,59215.0,59214.0,1.26288194]
[1723879170068,0.3298292,59215.0,59214.0,1.26288194]
[1723879170305,0.03386101,59215.0,59214.0,1.26288194]
[1723879171627,0.12856101,59215.0,59214.0,1.26288194]
[1723879172245,0.12856101,59215.0,59214.0,0.99267594]
[1723879172640,0.09636223,59215.0,59214.0,0.99267594]
[1723879174350,0.09636223,59215.0,59214.0,0.0039064]
[1723879174551,0.12856101,59215.0,59214.0,0.1390094]
[1723879178190,0.12856101,59215.0,59214.0,0.0039064]
[1723879178589,0.12856101,59215.0,59214.0,0.1390094]
[1723879180514,0.12856101,59215.0,59214.0,0.0039064]
[1723879181314,0.42345497,59215.0,59214.0,0.0039064]
[1723879182120,0.42345497,59215.0,59214.0,0.1390094]
[1723879182523,0.5752234,59215.0,59214.0,0.1390094]
[1723879182893,0.42345497,59215.0,59214.0,0.1390094]
[1723879183466,0.57522113,59215.0,59214.0,0.1390094]
[1723879183667,0.42345497,59215.0,59214.0,0.1390094]
[1723879184454,0.57522208,59215.0,59214.0,0.1390094]
[1723879184853,0.42345497,59215.0,59214.0,0.1390094]
[1723879185278,0.42345497,59215.0,59214.0,0.99107594]
[1723879185279,0.03386101,59215.0,59214.0,0.99107594]
[1723879185555,0.03386101,59215.0,59214.0,1.26128194]
[1723879185969,0.32875497,59215.0,59214.0,1.26128194]
[1723879187860,0.33094451,59215.0,59214.0,1.26128194]
[1723879192160,0.03386101,59215.0,59214.0,1.26128194]
[1723879192344,0.00166223,59215.0,59214.0,1.26128194]
[1723879192539,0.0338641,59215.0,59214.0,1.26128194]
[1723879192774,0.33109593,59215.0,59214.0,1.26128194]
[1723879193415,0.13501205,59215.0,59214.0,1.26128194]
[1723879193585,0.10972862,59215.0,59214.0,1.26128194]
[1723879194019,0.10972862,59215.0,59214.0,1.26028194]
[1723879194220,0.434782,59215.0,59214.0,1.26628194]
[1723879194448,0.434782,59215.0,59214.0,1.26428194]
[1723879194823,0.33363405,59215.0,59214.0,1.26428194]
[1723879195024,0.43477312,59215.0,59214.0,1.26428194]
[1723879195845,0.43577312,59215.0,59214.0,1.27228194]
[1723879196577,0.43576296,59215.0,59214.0,1.27228194]
[1723879196792,0.33369466,59215.0,59214.0,1.27228194]
[1723879197992,0.13698717,59215.0,59214.0,1.27228194]
[1723879198156,0.43481773,59215.0,59214.0,1.27228194]
[1723879199906,0.33369466,59215.0,59214.0,1.27228194]
[1723879200694,0.33278128,59215.0,59214.0,1.27228194]
[1723879201370,0.45916996,59215.0,59214.0,1.27228194]
[1723879201758,0.33278128,59215.0,59214.0,1.27228194]
[1723879201961,0.1369767,59215.0,59214.0,1.27228194]
[1723879202152,0.43389388,59215.0,59214.0,1.27228194]
[1723879202350,0.0358641,59215.0,59214.0,1.27228194]
[1723879202550,0.33397909,59215.0,59214.0,1.27228194]
[1723879202753,0.0358641,59215.0,59214.0,1.27228194]
[1723879204777,0.00366223,59215.0,59214.0,1.27228194]
[1723879205000,0.03588134,59215.0,59214.0,1.27228194]
[1723879206074,0.11172168,59215.0,59214.0,1.27228194]
[1723879206730,0.03588134,59215.0,59214.0,1.27228194]
[1723879207184,0.1117206,59215.0,59214.0,1.27228194]
[1723879207398,0.11171927,59215.0,59214.0,1.27228194]
[1723879209198,0.11172232,59215.0,59214.0,1.27228194]
[1723879209410,0.03588134,59215.0,59214.0,1.27228194]
[1723879209624,0.11172392,59215.0,59214.0,1.27228194]
[1723879211265,0.11072392,59215.0,59214.0,1.26628194]
[1723879211477,0.03488134,59215.0,59214.0,1.26628194]
[1723879211891,0.03588134,59215.0,59214.0,1.27528194]
[1723879212295,0.03488134,59215.0,59214.0,1.26728194]
[1723879212505,0.03588134,59215.0,59214.0,1.27728194]
[1723879212913,0.43535097,59215.0,59214.0,1.27728194]
[1723879215062,0.33423462,59215.0,59214.0,1.00707594]
[1723879215234,0.33423462,59215.0,59214.0,0.86797594]
[1723879215235,0.46063006,59215.0,59214.0,0.86797594]
[1723879217406,0.46063006,59215.0,59214.0,0.59776994]
[1723879217834,0.45960098,59215.0,59214.0,0.59776994]
[1723879222460,0.45944059,59215.0,59214.0,0.59776994]
[1723879223515,0.45944059,59215.0,59214.0,0.32756394]
[1723879224069,0.45944059,59215.0,59214.0,0.59776994]
[1723879226452,0.33300113,59215.0,59214.0,0.59776994]
[1723879227041,0.08647972,59215.0,59214.0,1.28038194]
[1723879227196,0.03588134,59215.0,59214.0,1.28038194]
[1723879227657,0.08647571,59215.0,59214.0,1.28038194]
[1723879227864,0.03588134,59215.0,59214.0,1.55058794]
[1723879228069,0.03588134,59215.0,59214.0,1.96690693]
[1723879228273,0.00366223,59215.0,59214.0,1.69670093]
[1723879228470,0.00366223,59215.0,59214.0,1.69570093]
[1723879228680,0.00366223,59215.0,59214.0,1.68770093]
[1723879228681,0.00266223,59215.0,59214.0,1.68770093]
[1723879228881,0.00166223,59215.0,59214.0,1.67770093]
[1723879229173,0.00266223,59215.0,59214.0,1.79240093]
[1723879229356,0.00266223,59215.0,59214.0,1.78240093]
[1723879229503,0.00266223,59215.0,59214.0,1.77440093]
[1723879229705,0.00366223,59215.0,59214.0,1.78840093]
[1723879229930,0.00366223,59215.0,59214.0,1.80440093]
[1723879230147,0.00366223,59215.0,59214.0,1.80040093]
[1723879231299,0.00366223,59215.0,59214.0,1.77828794]
[1723879231521,0.00366223,59215.0,59214.0,1.80039838]
[1723879232082,0.00366223,59215.0,59214.0,1.80039791]
[1723879233674,0.00366223,59215.0,59214.0,1.79939791]
[1723879233888,0.00366223,59215.0,59214.0,1.80039791]
[1723879234639,0.00366223,59215.0,59214.0,1.70469791]
[1723879234860,0.00366223,59215.0,59214.0,1.79939791]
[1723879238076,0.00366223,59215.0,59214.0,1.78939791]
[1723879240129,0.00366223,59215.0,59214.0,1.76728794]
[1723879240323,0.00366223,59215.0,59214.0,1.78939782]
[1723879244525,0.00366223,59215.0,59214.0,1.76728794]
[1723879244738,0.00366223,59215.0,59214.0,1.78939805]
[1723879244993,0.00366223,59215.0,59214.0,1.76728794]
[1723879245186,0.00366223,59215.0,59214.0,1.7893981]
[1723879246430,0.00321406,59215.0,59214.0,1.7893981]
[1723879249467,0.00321406,59215.0,59214.0,1.8514981]
[1723879249712,0.00321406,59215.0,59214.0,1.82938794]
[1723879249918,0.00321406,59215.0,59214.0,1.85149809]
[1723879250572,0.00321406,59215.0,59214.0,2.12270409]
[1723879251417,0.00321406,59215.0,59214.0,1.75779809]
[1723879252370,0.00321406,59215.0,59214.0,2.12270409]
[1723879253323,0.00321406,59215.0,59214.0,2.12270394]
[1723879254487,0.00321406,59215.0,59214.0,2.12470394]
[1723879254696,0.00321406,59215.0,59214.0,2.12270394]
[1723879255106,0.00321406,59215.0,59214.0,2.12361034]
[1723879256114,0.07803806,59228.0,59227.0,0.945514]
[1723879256313,0.11370161,59228.0,59227.0,1.11706854]
[1723879256563,0.07803806,59228.0,59227.0,1.11706854]
[1723879257636,0.07803806,59228.0,59227.0,1.12506854]
[1723879258657,0.07803806,59228.0,59227.0,1.13506854]
[1723879265488,0.000824,59229.0,59228.0,0.945497]
[1723879265689,0.000824,59229.0,59228.0,1.11805154]
[1723879266721,0.000824,59229.0,59228.0,1.12705154]
[1723879266939,0.000824,59229.0,59228.0,1.13123305]
[1723879267158,0.000824,59229.0,59228.0,1.13823305]
[1723879267989,0.000824,59229.0,59228.0,1.13123305]
[1723879268194,0.000824,59229.0,59228.0,1.12223305]
[1723879268399,0.000824,59229.0,59228.0,1.13023305]